[Event "Djerba Festival Blitz 2025"]
[Site "Djerba"]
[Date "2025.02.21"]
[Round "3.35"]
[White "Tahir, Abderrahmane"]
[Black "Khider, Amilia"]
[Result "1-0"]
[ECO "C00"]
[WhiteElo "1891"]
[BlackElo "1524"]
[PlyCount "60"]
[EventDate "2025.02.15"]
[EventType "swiss"]
[EventCountry "TUN"]
[TimeControl "180+3"]

1. Nf3 {[%emt 0:00:04]} d5 {[%emt 0:00:04]} 2. g3 {[%emt 0:00:02]} Nf6 {[%emt 0:00:04]} 3. Bg2 {[%emt 0:00:01]} c5 {[%emt 0:00:06]} 4. d3 {[%emt 0:00:01]} e6 {[%emt 0:00:03]} 5. O-O {[%emt 0:00:03]} Nc6 {[%emt 0:00:04]} 6. Nbd2 {[%emt 0:00:02]} b6 {[%emt 0:00:03]} 7. Re1 {[%emt 0:00:03]} Bb7 {[%emt 0:00:03]} 8. e4 {[%emt 0:00:01]} Be7 {[%emt 0:00:20]} 9. e5 {[%emt 0:00:02]} Nd7 {[%emt 0:00:05]} 10. Nf1 {[%emt 0:00:02]} O-O {[%emt 0:00:04]} 11. h4 {[%emt 0:00:01]} Rc8 {[%emt 0:00:20]} 12. N1h2 {[%emt 0:00:09]} f6 {[%emt 0:00:09]} 13. exf6 {[%emt 0:00:04]} Rxf6 {[%emt 0:00:05]} 14. Bg5 {[%emt 0:00:03]} Rg6 {[%emt 0:00:04]} 15. Bh3 {[%emt 0:00:18]} h6 {[%emt 0:00:36]} 16. Bxe7 {[%emt 0:00:40]} Qxe7 {[%emt 0:00:03]} 17. Ng4 {[%emt 0:00:12]} Re8 {[%emt 0:00:15]} 18. h5 {[%emt 0:00:11]} Rxg4 {[%emt 0:00:20]} 19. Bxg4 {[%emt 0:00:02]} Qf6 {[%emt 0:00:05]} 20. Nh4 {[%emt 0:00:08]} Nde5 {[%emt 0:00:09]} 21. f4 {[%emt 0:00:13]} Nxg4 {[%emt 0:00:13]} 22. Qxg4 {[%emt 0:00:02]} Bc8 {[%emt 0:00:09]} 23. f5 {[%emt 0:00:18]} e5 {[%emt 0:00:13]} 24. Re2 {[%emt 0:00:11]} Bb7 {[%emt 0:00:38]} 25. c3 {[%emt 0:00:09]} Nd8 {[%emt 0:00:00]} 26. Ng6 {[%emt 0:00:09]} Nf7 {[%emt 0:00:00]} 27. Rae1 {[%emt 0:00:03]} Kh7 {[%emt 0:00:03]} 28. Nf4 {[%emt 0:00:18]} Ng5 {[%emt 0:00:09]} 29. Ne6 {[%emt 0:00:03]} Nxe6 {[%emt 0:00:03]} 30. fxe6 {[%emt 0:00:03]} Bc8 {[%emt 0:00:03]} 1-0

[Event "Djerba Festival Blitz 2025"]
[Site "Djerba"]
[Date "2025.02.21"]
[Round "3.37"]
[White "Kammoun, Adam"]
[Black "Mendil, Yacine"]
[Result "0-1"]
[ECO "D13"]
[WhiteElo "1571"]
[BlackElo "1699"]
[PlyCount "44"]
[EventDate "2025.02.15"]
[EventType "swiss"]
[EventCountry "TUN"]
[TimeControl "180+3"]

1. d4 {[%emt 0:00:03]} d5 {[%emt 0:00:03]} 2. c4 {[%emt 0:00:02]} c6 {[%emt 0:00:02]} 3. Nc3 {[%emt 0:00:02]} Nf6 {[%emt 0:00:03]} 4. cxd5 {[%emt 0:00:03]} cxd5 {[%emt 0:00:02]} 5. Nf3 {[%emt 0:00:03]} Nc6 {[%emt 0:00:04]} 6. Bg5 {[%emt 0:00:02]} e6 {[%emt 0:00:04]} 7. a3 {[%emt 0:00:02]} Be7 {[%emt 0:00:02]} 8. e3 {[%emt 0:00:02]} O-O {[%emt 0:00:02]} 9. Be2 {[%emt 0:00:04]} h6 {[%emt 0:00:03]} 10. Bh4 {[%emt 0:00:04]} a6 {[%emt 0:00:04]} 11. O-O {[%emt 0:00:03]} b5 {[%emt 0:00:08]} 12. b4 {[%emt 0:00:12]} Bb7 {[%emt 0:00:08]} 13. Rc1 {[%emt 0:00:07]} Rc8 {[%emt 0:00:04]} 14. Bg3 {[%emt 0:00:13]} Nd7 {[%emt 0:00:03]} 15. e4 {[%emt 0:00:22]} dxe4 {[%emt 0:00:10]} 16. Nxe4 {[%emt 0:00:03]} Nb6 {[%emt 0:00:03]} 17. Nc5 {[%emt 0:00:21]} Bxc5 {[%emt 0:00:07]} 18. dxc5 {[%emt 0:00:06]} Nd5 {[%emt 0:00:04]} 19. Ne5 {[%emt 0:00:08]} Nxe5 {[%emt 0:00:27]} 20. Bxe5 {[%emt 0:00:02]} Qg5 {[%emt 0:00:09]} 21. Qd4 {[%emt 0:00:42]} Nf4 {[%emt 0:00:21]} 22. c6 {[%emt 0:00:53]} Qxg2# {[%emt 0:01:56] Ra1} 0-1

[Event "Djerba Festival Blitz 2025"]
[Site "Djerba"]
[Date "2025.02.21"]
[Round "3.38"]
[White "Doucet, Paul-Loup"]
[Black "Saidi, Bouziane"]
[Result "0-1"]
[ECO "C50"]
[WhiteElo "1503"]
[BlackElo "1710"]
[PlyCount "66"]
[EventDate "2025.02.15"]
[EventType "swiss"]
[EventCountry "TUN"]
[TimeControl "180+3"]

1. e4 {[%emt 0:03:06]} e5 {[%emt 0:03:06]} 2. Nf3 Nc6 {[%emt 0:00:03]} 3. Bc4 {[%emt 0:00:06]} Bc5 {[%emt 0:00:03]} 4. d3 {[%emt 0:00:03]} h6 {[%emt 0:00:03]} 5. Nc3 {[%emt 0:00:03]} Nf6 {[%emt 0:00:03]} 6. O-O {[%emt 0:00:03]} d6 {[%emt 0:00:03]} 7. h3 a6 {[%emt 0:00:03]} 8. a3 {[%emt 0:00:06]} O-O {[%emt 0:00:03]} 9. Ne2 {[%emt 0:00:03]} Be6 {[%emt 0:00:03]} 10. Bb3 {[%emt 0:00:03]} Bxb3 {[%emt 0:00:03]} 11. cxb3 Nh7 {[%emt 0:00:03]} 12. Ng3 {[%emt 0:00:06]} Ne7 {[%emt 0:00:03]} 13. Re1 {[%emt 0:00:03]} f5 {[%emt 0:00:03]} 14. exf5 {[%emt 0:00:03]} Nxf5 {[%emt 0:00:03]} 15. Ne4 {[%emt 0:00:03]} Bb6 {[%emt 0:00:03]} 16. Bd2 {[%emt 0:00:03]} Nh4 17. Nxh4 {[%emt 0:00:03]} Qxh4 {[%emt 0:00:06]} 18. Qe2 {[%emt 0:00:03]} d5 {[%emt 0:00:03]} 19. Be3 {[%emt 0:00:03]} Bxe3 {[%emt 0:00:03]} 20. Qxe3 {[%emt 0:00:03]} dxe4 {[%emt 0:00:03]} 21. dxe4 {[%emt 0:00:03]} Rf6 {[%emt 0:00:03]} 22. Rac1 {[%emt 0:00:03]} Raf8 {[%emt 0:00:03]} 23. Rf1 {[%emt 0:00:03]} Ng5 {[%emt 0:00:03]} 24. Rxc7 {[%emt 0:00:03]} Nf3+ {[%emt 0:00:03]} 25. gxf3 {[%emt 0:00:03]} Qxh3 {[%emt 0:00:03]} 26. f4 {[%emt 0:00:03]} Rg6+ 27. Qg3 {[%emt 0:00:03]} Rxg3+ {[%emt 0:00:06]} 28. fxg3 Qxg3+ {[%emt 0:00:03]} 29. Kh1 Rxf4 {[%emt 0:00:03]} 30. Rc8+ {[%emt 0:00:09]} Kh7 31. Rxf4 {[%emt 0:00:03]} exf4 {[%emt 0:00:06]} 32. Rf8 {[%emt 0:00:03]} f3 {[%emt 0:00:03]} 33. b4 {[%emt 0:00:03]} Qg2# {[%emt 0:00:03]} 0-1

[Event "Djerba Festival Blitz 2025"]
[Site "Djerba"]
[Date "2025.02.21"]
[Round "3.43"]
[White "Boudnani, Brahim"]
[Black "Badya, Vasily"]
[Result "0-1"]
[ECO "A48"]
[WhiteElo "1721"]
[BlackElo "1765"]
[PlyCount "126"]
[EventDate "2025.02.15"]
[EventType "swiss"]
[EventCountry "TUN"]
[TimeControl "180+3"]

1. d4 {[%emt 0:03:06]} Nf6 {[%emt 0:03:06]} 2. Bf4 g6 {[%emt 0:00:03]} 3. Nf3 {[%emt 0:00:06]} Bg7 4. Qd2 {[%emt 0:00:03]} h5 {[%emt 0:00:06]} 5. a3 {[%emt 0:00:03]} d6 {[%emt 0:00:03]} 6. Nc3 {[%emt 0:00:03]} c6 {[%emt 0:00:03]} 7. e4 {[%emt 0:00:03]} Bg4 {[%emt 0:00:03]} 8. Be2 {[%emt 0:00:03]} Nbd7 {[%emt 0:00:03]} 9. h3 {[%emt 0:00:03]} Bxf3 {[%emt 0:00:03]} 10. Bxf3 {[%emt 0:00:03]} e5 {[%emt 0:00:03]} 11. Be3 {[%emt 0:00:03]} exd4 {[%emt 0:00:03]} 12. Bxd4 {[%emt 0:00:03]} Ne5 {[%emt 0:00:03]} 13. Be3 {[%emt 0:00:03]} Nc4 {[%emt 0:00:03]} 14. Qc1 {[%emt 0:00:03]} Nxe3 {[%emt 0:00:03]} 15. fxe3 {[%emt 0:00:03]} Qa5 {[%emt 0:00:03]} 16. O-O {[%emt 0:00:03]} O-O {[%emt 0:00:03]} 17. Ne2 {[%emt 0:00:03]} Rae8 {[%emt 0:00:03]} 18. Nf4 {[%emt 0:00:03]} Nxe4 {[%emt 0:00:03]} 19. c3 {[%emt 0:00:03]} Qb6 {[%emt 0:00:03]} 20. Kh1 {[%emt 0:00:03]} Ng5 {[%emt 0:00:03]} 21. Qd2 {[%emt 0:00:03]} Qxe3 {[%emt 0:00:03]} 22. Qd1 {[%emt 0:00:03]} Qxf4 {[%emt 0:00:03]} 23. Bxc6 {[%emt 0:00:03]} Qe5 {[%emt 0:00:03]} 24. Bxe8 {[%emt 0:00:03]} Rxe8 {[%emt 0:00:03]} 25. Re1 {[%emt 0:00:03]} Qxe1+ {[%emt 0:00:03]} 26. Qxe1 {[%emt 0:00:03]} Rxe1+ 27. Rxe1 {[%emt 0:00:03]} Kf8 28. Kh2 {[%emt 0:00:03]} Be5+ {[%emt 0:00:09]} 29. Kg1 {[%emt 0:00:03]} Ne6 30. Kf2 {[%emt 0:00:03]} Nc5 {[%emt 0:00:06]} 31. Ke3 {[%emt 0:00:03]} Kg7 {[%emt 0:00:03]} 32. a4 {[%emt 0:00:03]} b6 {[%emt 0:00:03]} 33. Rf1 {[%emt 0:00:03]} Nxa4 {[%emt 0:00:03]} 34. Rf2 {[%emt 0:00:03]} Nc5 {[%emt 0:00:03]} 35. Rf1 {[%emt 0:00:03]} a5 {[%emt 0:00:03]} 36. g4 {[%emt 0:00:03]} hxg4 {[%emt 0:00:03]} 37. hxg4 Ne6 {[%emt 0:00:03]} 38. Ke4 {[%emt 0:00:06]} Nc5+ {[%emt 0:00:03]} 39. Kd5 {[%emt 0:00:03]} Nd3 {[%emt 0:00:03]} 40. Rb1 {[%emt 0:00:03]} Nf2 {[%emt 0:00:03]} 41. Rg1 {[%emt 0:00:03]} Nd3 {[%emt 0:00:03]} 42. Rg2 {[%emt 0:00:03]} Nf4+ {[%emt 0:00:03]} 43. Kc6 {[%emt 0:00:03]} Nxg2 {[%emt 0:00:03]} 44. Kxb6 a4 {[%emt 0:00:03]} 45. Kb5 {[%emt 0:00:06]} a3 46. bxa3 {[%emt 0:00:03]} Bxc3 {[%emt 0:00:06]} 47. a4 Bd4 {[%emt 0:00:03]} 48. a5 Bc5 {[%emt 0:00:03]} 49. Kc6 {[%emt 0:00:09]} Ne3 50. g5 {[%emt 0:00:03]} Ng4 {[%emt 0:00:06]} 51. a6 Ne5+ {[%emt 0:00:03]} 52. Kb7 {[%emt 0:00:06]} Nf3 {[%emt 0:00:03]} 53. a7 {[%emt 0:00:03]} Bxa7 {[%emt 0:00:03]} 54. Kxa7 d5 {[%emt 0:00:03]} 55. Kb6 {[%emt 0:00:06]} d4 56. Kc5 d3 57. Kc4 {[%emt 0:00:06]} d2 {[%emt 0:00:09]} 58. Kc3 {[%emt 0:00:03]} d1=Q {[%emt 0:00:03]} 59. Kc4 {[%emt 0:00:03]} Qd4+ {[%emt 0:00:03]} 60. Kb3 f5 {[%emt 0:00:03]} 61. Kc2 {[%emt 0:00:06]} f4 {[%emt 0:00:03]} 62. Kc1 {[%emt 0:00:03]} Nxg5 {[%emt 0:00:03]} 63. Kc2 {[%emt 0:00:03]} f3 {[%emt 0:00:03] Kd1} 0-1

[Event "Djerba Festival Blitz 2025"]
[Site "Djerba"]
[Date "2025.02.21"]
[Round "3.45"]
[White "Ferahi, Tarik"]
[Black "Doucet, Jean Gabriel"]
[Result "1/2-1/2"]
[ECO "C66"]
[WhiteElo "1612"]
[BlackElo "1506"]
[PlyCount "74"]
[EventDate "2025.02.15"]
[EventType "swiss"]
[EventCountry "TUN"]
[TimeControl "180+3"]

1. e4 {[%emt 0:03:06]} e5 {[%emt 0:03:06]} 2. Nf3 {[%emt 0:00:03]} Nc6 {[%emt 0:00:03]} 3. Bb5 Nf6 {[%emt 0:00:03]} 4. O-O {[%emt 0:00:06]} d6 {[%emt 0:00:03]} 5. Nc3 {[%emt 0:00:03]} a6 6. Bc4 {[%emt 0:00:03]} Be6 {[%emt 0:00:06]} 7. Bxe6 {[%emt 0:00:03]} fxe6 8. d4 {[%emt 0:00:03]} exd4 {[%emt 0:00:06]} 9. Nxd4 {[%emt 0:00:03]} Nxd4 10. Qxd4 {[%emt 0:00:03]} e5 {[%emt 0:00:06]} 11. Qd3 {[%emt 0:00:03]} Be7 {[%emt 0:00:03]} 12. f4 {[%emt 0:00:03]} O-O {[%emt 0:00:03]} 13. f5 {[%emt 0:00:03]} c6 {[%emt 0:00:03]} 14. Qg3 {[%emt 0:00:03]} Nh5 {[%emt 0:00:03]} 15. Qf3 {[%emt 0:00:03]} Nf6 {[%emt 0:00:03]} 16. Bg5 {[%emt 0:00:03]} h6 {[%emt 0:00:03]} 17. Be3 {[%emt 0:00:03]} d5 {[%emt 0:00:03]} 18. exd5 {[%emt 0:00:03]} cxd5 {[%emt 0:00:03]} 19. Bf2 {[%emt 0:00:03]} d4 {[%emt 0:00:03]} 20. Ne4 {[%emt 0:00:03]} Qc7 {[%emt 0:00:03]} 21. Rac1 {[%emt 0:00:03]} b5 {[%emt 0:00:03]} 22. Nxf6+ {[%emt 0:00:03]} Bxf6 {[%emt 0:00:03]} 23. Qg3 {[%emt 0:00:03]} Bg5 {[%emt 0:00:03]} 24. Rce1 {[%emt 0:00:03]} Rae8 {[%emt 0:00:03]} 25. Bxd4 {[%emt 0:00:03]} Qxc2 {[%emt 0:00:03]} 26. Bxe5 {[%emt 0:00:03]} Qc5+ {[%emt 0:00:03]} 27. Kh1 {[%emt 0:00:03]} Bd2 {[%emt 0:00:03]} 28. Re2 {[%emt 0:00:03]} Bg5 {[%emt 0:00:03]} 29. Qb3+ {[%emt 0:00:03]} Kh8 {[%emt 0:00:03]} 30. Qc3 {[%emt 0:00:03]} Qxc3 {[%emt 0:00:03]} 31. Bxc3 {[%emt 0:00:03]} Rxe2 {[%emt 0:00:03]} 32. f6 {[%emt 0:00:03]} Bxf6 {[%emt 0:00:03]} 33. Bxf6 {[%emt 0:00:03]} Rxf6 34. Rd1 {[%emt 0:00:03]} Rfe6 {[%emt 0:00:06]} 35. Rd8+ {[%emt 0:00:03]} Kh7 {[%emt 0:00:03]} 36. h3 {[%emt 0:00:03]} Rxb2 {[%emt 0:00:03]} 37. Rd7 {[%emt 0:00:03]} Rxa2 {[%emt 0:00:03]} 1/2-1/2

[Event "Djerba Festival Blitz 2025"]
[Site "Djerba"]
[Date "2025.02.21"]
[Round "3.47"]
[White "Chargui, Saleh"]
[Black "Baba, Jihed"]
[Result "1-0"]
[ECO "E30"]
[WhiteElo "1709"]
[BlackElo "1669"]
[PlyCount "123"]
[EventDate "2025.02.15"]
[EventType "swiss"]
[EventCountry "TUN"]
[TimeControl "180+3"]

1. d4 {[%emt 0:03:06]} Nf6 {[%emt 0:03:06]} 2. c4 {[%emt 0:00:03]} e6 {[%emt 0:00:03]} 3. Nc3 Bb4 {[%emt 0:00:03]} 4. Bg5 {[%emt 0:00:06]} h6 {[%emt 0:00:03]} 5. Bxf6 {[%emt 0:00:03]} Qxf6 {[%emt 0:00:03]} 6. Nf3 {[%emt 0:00:03]} c5 {[%emt 0:00:03]} 7. e4 {[%emt 0:00:03]} cxd4 {[%emt 0:00:03]} 8. Qxd4 {[%emt 0:00:03]} Qxd4 {[%emt 0:00:03]} 9. Nxd4 {[%emt 0:00:03]} a6 {[%emt 0:00:03]} 10. Rc1 {[%emt 0:00:03]} Nc6 {[%emt 0:00:03]} 11. Nxc6 {[%emt 0:00:03]} dxc6 {[%emt 0:00:03]} 12. Be2 {[%emt 0:00:03]} b5 {[%emt 0:00:03]} 13. cxb5 {[%emt 0:00:03]} cxb5 {[%emt 0:00:03]} 14. Bf3 {[%emt 0:00:03]} Bb7 {[%emt 0:00:03]} 15. O-O {[%emt 0:00:03]} O-O {[%emt 0:00:03]} 16. a3 {[%emt 0:00:03]} Be7 {[%emt 0:00:03]} 17. Ne2 {[%emt 0:00:03]} Rfd8 {[%emt 0:00:03]} 18. Rc7 {[%emt 0:00:03]} Rd2 {[%emt 0:00:03]} 19. Rxb7 {[%emt 0:00:03]} Bf6 {[%emt 0:00:03]} 20. b3 {[%emt 0:00:03]} Rad8 {[%emt 0:00:03]} 21. a4 {[%emt 0:00:03]} Rd1 {[%emt 0:00:03]} 22. Ng3 {[%emt 0:00:03]} R1d3 {[%emt 0:00:03]} 23. axb5 {[%emt 0:00:03]} a5 {[%emt 0:00:03]} 24. h3 {[%emt 0:00:03]} Rxb3 {[%emt 0:00:03]} 25. b6 {[%emt 0:00:03]} a4 {[%emt 0:00:03]} 26. Re1 {[%emt 0:00:03]} Bd4 {[%emt 0:00:03]} 27. Rd1 {[%emt 0:00:03]} a3 {[%emt 0:00:03]} 28. Ne2 {[%emt 0:00:03]} Bxf2+ {[%emt 0:00:03]} 29. Kxf2 {[%emt 0:00:03]} Rxd1 30. Rb8+ {[%emt 0:00:03]} Kh7 {[%emt 0:00:06]} 31. e5 {[%emt 0:00:03]} a2 {[%emt 0:00:03]} 32. Ra8 {[%emt 0:00:03]} Rxb6 {[%emt 0:00:03]} 33. Rxa2 {[%emt 0:00:03]} Rd8 {[%emt 0:00:03]} 34. Be4+ {[%emt 0:00:03]} g6 {[%emt 0:00:03]} 35. h4 {[%emt 0:00:03]} Rb5 {[%emt 0:00:03]} 36. h5 {[%emt 0:00:03]} Rxe5 {[%emt 0:00:03]} 37. hxg6+ {[%emt 0:00:03]} Kg7 {[%emt 0:00:03]} 38. Ng3 {[%emt 0:00:03]} fxg6 {[%emt 0:00:03]} 39. Ra7+ {[%emt 0:00:03]} Kf6 40. Bf3 {[%emt 0:00:03]} Rd2+ {[%emt 0:00:06]} 41. Be2 {[%emt 0:00:03]} h5 {[%emt 0:00:03]} 42. Ke1 {[%emt 0:00:03]} Rd8 {[%emt 0:00:03]} 43. Nh1 {[%emt 0:00:03]} h4 {[%emt 0:00:03]} 44. Nf2 {[%emt 0:00:03]} Rg5 {[%emt 0:00:03]} 45. Bf3 {[%emt 0:00:03]} Re5+ {[%emt 0:00:03]} 46. Kf1 Kg5 {[%emt 0:00:03]} 47. Nh3+ {[%emt 0:00:06]} Kh6 {[%emt 0:00:03]} 48. Ra4 {[%emt 0:00:03]} g5 {[%emt 0:00:03]} 49. Re4 {[%emt 0:00:03]} Rxe4 50. Bxe4 Rf8+ {[%emt 0:00:06]} 51. Ke2 {[%emt 0:00:06]} e5 {[%emt 0:00:03]} 52. Nf2 {[%emt 0:00:03]} Rf4 {[%emt 0:00:03]} 53. Bf3 {[%emt 0:00:03]} Kg6 {[%emt 0:00:03]} 54. Nh3 {[%emt 0:00:03]} Rf8 {[%emt 0:00:03]} 55. Ke3 {[%emt 0:00:03]} Kh6 {[%emt 0:00:03]} 56. Ke4 {[%emt 0:00:03]} Kg6 {[%emt 0:00:03]} 57. Kxe5 {[%emt 0:00:03]} Re8+ 58. Kd4 {[%emt 0:00:03]} Rd8+ {[%emt 0:00:06]} 59. Bd5 {[%emt 0:00:03]} g4 {[%emt 0:00:03]} 60. Nf2 {[%emt 0:00:03]} g3 {[%emt 0:00:03]} 61. Nh3 {[%emt 0:00:03]} Rb8 {[%emt 0:00:03]} 62. Be4+ {[%emt 0:00:03] Rb3 Ng1+} 1-0